[Event "Betsys MČR v online bleskovém šachu 2021"]
[Site "Chess.com"]
[Date "2021.04.17"]
[Round "12"]
[White "sajmon8"]
[Black "Classemence"]
[Result "0-1"]
[WhiteElo "1650"]
[BlackElo "1886"]
[TimeControl "180+1"]
[EndTime "10:59:54 PDT"]
[Termination "Uživatel Classemence zvítězil matem"]

1. e4 {[%clk 0:03:00.9]} 1... e5 {[%clk 0:02:59.8]} 2. Nf3 {[%clk 0:02:59.5]}
2... Nc6 {[%clk 0:03:00.4]} 3. Bb5 {[%clk 0:02:57.2]} 3... a6 {[%clk 0:03:00]}
4. Bxc6 {[%clk 0:02:55.1]} 4... dxc6 {[%clk 0:03:00.9]} 5. O-O {[%clk
0:02:54.2]} 5... Bg4 {[%clk 0:03:00.5]} 6. h3 {[%clk 0:02:52.7]} 6... h5 {[%clk
0:02:58.5]} 7. Nc3 {[%clk 0:02:51.2]} 7... Qf6 {[%clk 0:02:57]} 8. d3 {[%clk
0:02:49.3]} 8... Bxf3 {[%clk 0:02:50]} 9. Qxf3 {[%clk 0:02:48]} 9... Qxf3 {[%clk
0:02:50.1]} 10. gxf3 {[%clk 0:02:48.9]} 10... Bd6 {[%clk 0:02:44.4]} 11. Be3
{[%clk 0:02:41.8]} 11... f6 {[%clk 0:02:42.2]} 12. d4 {[%clk 0:02:40.4]} 12...
O-O-O {[%clk 0:02:40.3]} 13. Rad1 {[%clk 0:02:31.6]} 13... Ne7 {[%clk
0:02:36.5]} 14. dxe5 {[%clk 0:02:30]} 14... Bxe5 {[%clk 0:02:34.7]} 15. f4
{[%clk 0:02:24.8]} 15... Bxc3 {[%clk 0:02:34]} 16. bxc3 {[%clk 0:02:23.1]} 16...
b6 {[%clk 0:02:28.2]} 17. e5 {[%clk 0:02:17.5]} 17... Nd5 {[%clk 0:02:19.2]} 18.
exf6 {[%clk 0:02:10.8]} 18... gxf6 {[%clk 0:02:17.7]} 19. c4 {[%clk 0:02:06.2]}
19... Nxe3 {[%clk 0:02:05.5]} 20. fxe3 {[%clk 0:02:04.4]} 20... Rxd1 {[%clk
0:02:04.7]} 21. Rxd1 {[%clk 0:02:02.6]} 21... f5 {[%clk 0:01:54.1]} 22. Kf2
{[%clk 0:01:59.4]} 22... Rg8 {[%clk 0:01:52]} 23. Kf3 {[%clk 0:01:56.3]} 23...
c5 {[%clk 0:01:43.8]} 24. Rd5 {[%clk 0:01:54.1]} 24... Rf8 {[%clk 0:01:39.8]}
25. Re5 {[%clk 0:01:53.8]} 25... Kb7 {[%clk 0:01:39.1]} 26. Re6 {[%clk
0:01:51.1]} 26... Rd8 {[%clk 0:01:28.5]} 27. Rh6 {[%clk 0:01:44.4]} 27... Rd2
{[%clk 0:01:28.5]} 28. Rxh5 {[%clk 0:01:42.8]} 28... Rxc2 {[%clk 0:01:28.8]} 29.
Rxf5 {[%clk 0:01:41.5]} 29... Rxa2 {[%clk 0:01:27.5]} 30. h4 {[%clk 0:01:40.9]}
30... Rh2 {[%clk 0:01:27.9]} 31. h5 {[%clk 0:01:40]} 31... a5 {[%clk 0:01:28.4]}
32. Kg3 {[%clk 0:01:37.9]} 32... Rh1 {[%clk 0:01:27.8]} 33. e4 {[%clk
0:01:35.1]} 33... a4 {[%clk 0:01:26.6]} 34. e5 {[%clk 0:01:35]} 34... a3 {[%clk
0:01:24.3]} 35. e6 {[%clk 0:01:34.3]} 35... a2 {[%clk 0:01:07.1]} 36. e7 {[%clk
0:01:30.3]} 36... a1=Q {[%clk 0:01:07]} 37. e8=Q {[%clk 0:01:25.6]} 37... Qg1+
{[%clk 0:01:05.9]} 38. Kf3 {[%clk 0:01:22.3]} 38... Rh3+ {[%clk 0:01:05.3]} 39.
Ke2 {[%clk 0:01:05.9]} 39... Rh2+ {[%clk 0:00:53.3]} 40. Kd3 {[%clk 0:00:49.1]}
40... Qd4# {[%clk 0:00:50.3]} 0-1

[Event "Betsys MČR v online bleskovém šachu 2021"]
[Site "Chess.com"]
[Date "2021.04.17"]
[Round "12"]
[White "Sfreedom01"]
[Black "JanBaraCZE"]
[Result "0-1"]
[WhiteElo "1334"]
[BlackElo "1591"]
[TimeControl "180+1"]
[EndTime "10:59:55 PDT"]
[Termination "Uživatel JanBaraCZE zvítězil po vzdání soupeře"]

1. e4 {[%clk 0:03:00.9]} 1... c5 {[%clk 0:03:00.9]} 2. c3 {[%clk 0:03:00.7]}
2... Nc6 {[%clk 0:03:01]} 3. d4 {[%clk 0:03:01.3]} 3... cxd4 {[%clk 0:03:00.7]}
4. cxd4 {[%clk 0:03:01.9]} 4... Nf6 {[%clk 0:03:01]} 5. e5 {[%clk 0:03:01.5]}
5... Nd5 {[%clk 0:02:59.9]} 6. Nc3 {[%clk 0:03:00.4]} 6... Nxc3 {[%clk
0:02:59.4]} 7. bxc3 {[%clk 0:03:00.7]} 7... d6 {[%clk 0:02:59.6]} 8. Bb5 {[%clk
0:03:00.3]} 8... dxe5 {[%clk 0:02:59]} 9. Bxc6+ {[%clk 0:02:58.9]} 9... bxc6
{[%clk 0:02:58.6]} 10. dxe5 {[%clk 0:02:54.5]} 10... Qxd1+ {[%clk 0:02:58.1]}
11. Kxd1 {[%clk 0:02:55.1]} 11... Bb7 {[%clk 0:02:57.1]} 12. Kc2 {[%clk
0:02:48.8]} 12... c5 {[%clk 0:02:56.1]} 13. f3 {[%clk 0:02:49.2]} 13... O-O-O
{[%clk 0:02:54.7]} 14. Be3 {[%clk 0:02:44.8]} 14... e6 {[%clk 0:02:53.3]} 15.
Ne2 {[%clk 0:02:41.8]} 15... g6 {[%clk 0:02:52.6]} 16. Rhd1 {[%clk 0:02:40.6]}
16... Rxd1 {[%clk 0:02:50.9]} 17. Rxd1 {[%clk 0:02:40.5]} 17... Ba6 {[%clk
0:02:49.4]} 18. Rd2 {[%clk 0:02:27.7]} 18... Kc7 {[%clk 0:02:45.3]} 19. f4
{[%clk 0:02:26.2]} 19... Be7 {[%clk 0:02:39.3]} 20. g3 {[%clk 0:02:25.6]} 20...
Rb8 {[%clk 0:02:38]} 21. Nc1 {[%clk 0:02:20.2]} 21... c4 {[%clk 0:02:33.8]} 22.
Bxa7 {[%clk 0:02:16.6]} 22... Rb7 {[%clk 0:02:27.8]} 23. Bd4 {[%clk 0:02:15.4]}
23... Ba3 {[%clk 0:02:25.7]} 24. h3 {[%clk 0:02:10.2]} 24... Rb2+ {[%clk
0:02:24.6]} 25. Kd1 {[%clk 0:02:08.2]} 25... Rb1 {[%clk 0:02:23.7]} 26. Rc2
{[%clk 0:02:02.5]} 26... Bb5 {[%clk 0:02:21.4]} 27. Ke2 {[%clk 0:01:41.8]} 27...
Rxc1 {[%clk 0:02:19.9]} 28. Rd2 {[%clk 0:01:38.8]} 28... Rh1 {[%clk 0:02:08.9]}
29. Kf3 {[%clk 0:01:32.5]} 29... Bc6+ {[%clk 0:02:07.9]} 30. Kg4 {[%clk
0:01:29.6]} 30... h5+ {[%clk 0:01:53.9]} 31. Kg5 {[%clk 0:01:28.5]} 31... Rxh3
{[%clk 0:01:53.4]} 32. Kf6 {[%clk 0:01:28.8]} 32... Rxg3 {[%clk 0:01:53.1]} 33.
Kxf7 {[%clk 0:01:25.1]} 33... Rf3 {[%clk 0:01:49.4]} 34. Kxg6 {[%clk 0:01:21.6]}
34... Rxf4 {[%clk 0:01:48.5]} 35. Kxh5 {[%clk 0:01:20.9]} 35... Bf3+ {[%clk
0:01:47.2]} 36. Kg5 {[%clk 0:01:20.1]} 36... Re4 {[%clk 0:01:43.3]} 37. Kf6
{[%clk 0:01:16.8]} 37... Bc1 {[%clk 0:01:39.7]} 38. Rh2 {[%clk 0:01:12.5]} 38...
Bg4 {[%clk 0:01:32.3]} 39. Rh7+ {[%clk 0:01:01.2]} 39... Kc6 {[%clk 0:01:31.9]}
40. Rh8 {[%clk 0:00:57.4]} 40... Rf4+ {[%clk 0:01:25.4]} 41. Kg5 {[%clk
0:00:56.3]} 41... Rf8+ {[%clk 0:01:20.5]} 42. Kxg4 {[%clk 0:00:53.6]} 42... Rxh8
{[%clk 0:01:20.2]} 43. Kf3 {[%clk 0:00:51.6]} 43... Ra8 {[%clk 0:01:19.7]} 44.
Kg4 {[%clk 0:00:50.2]} 44... Rxa2 {[%clk 0:01:18.8]} 45. Kh5 {[%clk 0:00:50.9]}
45... Rd2 {[%clk 0:01:18.1]} 46. Kg6 {[%clk 0:00:50.7]} 46... Kd5 {[%clk
0:01:17.9]} 47. Kf6 {[%clk 0:00:49.2]} 47... Rxd4 {[%clk 0:01:17.4]} 48. cxd4
{[%clk 0:00:49.6]} 48... Kxd4 {[%clk 0:01:17.5]} 0-1

[Event "Betsys MČR v online bleskovém šachu 2021"]
[Site "Chess.com"]
[Date "2021.04.17"]
[Round "12"]
[White "Rubinus"]
[Black "machonza"]
[Result "0-1"]
[WhiteElo "2146"]
[BlackElo "2039"]
[TimeControl "180+1"]
[EndTime "10:59:57 PDT"]
[Termination "Uživatel machonza zvítězil na čas"]

1. e4 {[%clk 0:02:56.6]} 1... c5 {[%clk 0:02:59]} 2. Nf3 {[%clk 0:02:55.7]} 2...
d6 {[%clk 0:02:57.8]} 3. d4 {[%clk 0:02:56.1]} 3... cxd4 {[%clk 0:02:58.1]} 4.
Nxd4 {[%clk 0:02:56.7]} 4... Nf6 {[%clk 0:02:58]} 5. Nc3 {[%clk 0:02:57.2]} 5...
a6 {[%clk 0:02:57.9]} 6. Bg5 {[%clk 0:02:57.2]} 6... Nbd7 {[%clk 0:02:56.6]} 7.
f4 {[%clk 0:02:53.5]} 7... Qa5 {[%clk 0:02:55.7]} 8. Qd2 {[%clk 0:02:51.5]} 8...
h6 {[%clk 0:02:52.1]} 9. Bxf6 {[%clk 0:02:50]} 9... Nxf6 {[%clk 0:02:50.4]} 10.
Bd3 {[%clk 0:02:48.2]} 10... e6 {[%clk 0:02:49.6]} 11. Nb3 {[%clk 0:02:44.6]}
11... Qc7 {[%clk 0:02:46.6]} 12. O-O-O {[%clk 0:02:43.8]} 12... Be7 {[%clk
0:02:44.8]} 13. h3 {[%clk 0:02:42.8]} 13... b5 {[%clk 0:02:42.1]} 14. g4 {[%clk
0:02:35.3]} 14... Bb7 {[%clk 0:02:41]} 15. Qe3 {[%clk 0:02:27]} 15... Rc8 {[%clk
0:02:37.8]} 16. Rd2 {[%clk 0:02:22.7]} 16... Nd7 {[%clk 0:02:35.8]} 17. f5
{[%clk 0:02:15]} 17... Bg5 {[%clk 0:02:28.4]} 18. Qf3 {[%clk 0:02:09.6]} 18...
Ne5 {[%clk 0:02:22]} 19. Qg3 {[%clk 0:02:03.8]} 19... b4 {[%clk 0:01:46.5]} 20.
Nd1 {[%clk 0:01:55.4]} 20... d5 {[%clk 0:01:34]} 21. fxe6 {[%clk 0:01:27.8]}
21... dxe4 {[%clk 0:01:27.8]} 22. exf7+ {[%clk 0:01:26.9]} 22... Kf8 {[%clk
0:01:22.7]} 23. Kb1 {[%clk 0:01:20.1]} 23... Bxd2 {[%clk 0:01:18.1]} 24. Rh2
{[%clk 0:00:45.2]} 24... exd3 {[%clk 0:01:17.8]} 25. c4 {[%clk 0:00:34.7]} 25...
bxc3 {[%clk 0:01:15.2]} 26. bxc3 {[%clk 0:00:29.4]} 26... Bxc3 {[%clk
0:01:12.1]} 27. Rf2 {[%clk 0:00:11.2]} 27... d2 {[%clk 0:01:10.5]} 28. Nxc3
{[%clk 0:00:06.4]} 28... Qxc3 {[%clk 0:01:09.4]} 29. Qxc3 {[%clk 0:00:05.4]}
29... d1=Q+ {[%clk 0:01:08.2]} 0-1

[Event "Betsys MČR v online bleskovém šachu 2021"]
[Site "Chess.com"]
[Date "2021.04.17"]
[Round "12"]
[White "ReitteN"]
[Black "lupinek23"]
[Result "1-0"]
[WhiteElo "1773"]
[BlackElo "1594"]
[TimeControl "180+1"]
[EndTime "11:00:04 PDT"]
[Termination "Uživatel ReitteN zvítězil po vzdání soupeře"]

1. c4 {[%clk 0:02:58.2]} 1... d5 {[%clk 0:02:57.3]} 2. cxd5 {[%clk 0:02:58.1]}
2... Qxd5 {[%clk 0:02:56.2]} 3. Nc3 {[%clk 0:02:58.4]} 3... Qd8 {[%clk
0:02:55.8]} 4. g3 {[%clk 0:02:58.5]} 4... Nf6 {[%clk 0:02:52.7]} 5. Bg2 {[%clk
0:02:58.6]} 5... e5 {[%clk 0:02:50.7]} 6. d3 {[%clk 0:02:58.3]} 6... Bb4 {[%clk
0:02:50.1]} 7. Nf3 {[%clk 0:02:56.9]} 7... Nc6 {[%clk 0:02:47.4]} 8. a3 {[%clk
0:02:55.4]} 8... Bxc3+ {[%clk 0:02:45.8]} 9. bxc3 {[%clk 0:02:56.3]} 9... O-O
{[%clk 0:02:45.6]} 10. O-O {[%clk 0:02:53.8]} 10... h6 {[%clk 0:02:44]} 11. Be3
{[%clk 0:02:38.2]} 11... Bg4 {[%clk 0:02:38.4]} 12. h3 {[%clk 0:02:34.9]} 12...
Bh5 {[%clk 0:02:37.6]} 13. Qb3 {[%clk 0:02:29.5]} 13... Rb8 {[%clk 0:02:34.3]}
14. Rab1 {[%clk 0:02:19.6]} 14... Qd7 {[%clk 0:02:13.6]} 15. Kh2 {[%clk
0:02:17.4]} 15... Nd5 {[%clk 0:02:06.5]} 16. Bc5 {[%clk 0:01:53.2]} 16... b6
{[%clk 0:02:03.1]} 17. Bxf8 {[%clk 0:01:51]} 17... Rxf8 {[%clk 0:02:00.8]} 18.
c4 {[%clk 0:01:45.8]} 18... Nf6 {[%clk 0:01:53.9]} 19. Qc2 {[%clk 0:01:38.2]}
19... Bg6 {[%clk 0:01:52.4]} 20. e4 {[%clk 0:01:36.9]} 20... Rd8 {[%clk
0:01:45.3]} 21. Rfd1 {[%clk 0:01:36.3]} 21... Nh5 {[%clk 0:01:37.2]} 22. Bf1
{[%clk 0:01:25.9]} 22... f5 {[%clk 0:01:29.8]} 23. c5 {[%clk 0:01:20.1]} 23...
Nf6 {[%clk 0:01:19]} 24. cxb6 {[%clk 0:01:17.3]} 24... axb6 {[%clk 0:01:16.5]}
25. Rbc1 {[%clk 0:01:16.5]} 25... Nd4 {[%clk 0:01:10.8]} 26. Nxd4 {[%clk
0:01:14.4]} 26... Qxd4 {[%clk 0:01:10.9]} 27. Qc4+ {[%clk 0:01:13.7]} 27... Qxc4
{[%clk 0:01:07.9]} 28. dxc4 {[%clk 0:01:14.6]} 28... Ra8 {[%clk 0:01:03.6]} 29.
exf5 {[%clk 0:01:10.4]} 29... Bxf5 {[%clk 0:01:01.6]} 30. Ra1 {[%clk 0:00:56.4]}
30... Ne4 {[%clk 0:00:55.6]} 31. Kg1 {[%clk 0:00:48.2]} 31... Nc3 {[%clk
0:00:41.9]} 32. Bg2 {[%clk 0:00:44.2]} 32... Ne2+ {[%clk 0:00:39.7]} 33. Kf1
{[%clk 0:00:39.2]} 33... Nc3 {[%clk 0:00:35.6]} 34. Bxa8 {[%clk 0:00:38.6]} 1-0

[Event "Betsys MČR v online bleskovém šachu 2021"]
[Site "Chess.com"]
[Date "2021.04.17"]
[Round "12"]
[White "vaclavbelaska"]
[Black "jarosymon"]
[Result "0-1"]
[WhiteElo "1378"]
[BlackElo "1707"]
[TimeControl "180+1"]
[EndTime "11:00:06 PDT"]
[Termination "Uživatel jarosymon zvítězil matem"]

1. d4 {[%clk 0:03:00.9]} 1... d5 {[%clk 0:02:59.1]} 2. c4 {[%clk 0:02:55.5]}
2... e6 {[%clk 0:02:58.1]} 3. Nc3 {[%clk 0:02:54]} 3... c5 {[%clk 0:02:57.8]} 4.
e3 {[%clk 0:02:48.7]} 4... Nf6 {[%clk 0:02:56.6]} 5. Nf3 {[%clk 0:02:47]} 5...
a6 {[%clk 0:02:54.7]} 6. a3 {[%clk 0:02:46.5]} 6... dxc4 {[%clk 0:02:53.5]} 7.
dxc5 {[%clk 0:02:44.1]} 7... Qxd1+ {[%clk 0:02:51.6]} 8. Kxd1 {[%clk 0:02:43.9]}
8... Bxc5 {[%clk 0:02:48.9]} 9. Bxc4 {[%clk 0:02:43.4]} 9... b5 {[%clk
0:02:47.9]} 10. b4 {[%clk 0:02:33.4]} 10... Bb6 {[%clk 0:02:18.6]} 11. Bb3
{[%clk 0:02:31.6]} 11... Bb7 {[%clk 0:02:18]} 12. Bb2 {[%clk 0:02:30.6]} 12...
Nc6 {[%clk 0:02:15]} 13. Ke2 {[%clk 0:02:28]} 13... Ke7 {[%clk 0:02:10.9]} 14.
Rad1 {[%clk 0:02:20.8]} 14... Rhd8 {[%clk 0:02:08.8]} 15. Rxd8 {[%clk
0:02:17.9]} 15... Rxd8 {[%clk 0:02:07.3]} 16. Rd1 {[%clk 0:02:16.9]} 16... Rxd1
{[%clk 0:01:59.1]} 17. Kxd1 {[%clk 0:02:12.6]} 17... Nb8 {[%clk 0:01:50.8]} 18.
Ke2 {[%clk 0:02:07.7]} 18... Nbd7 {[%clk 0:01:49.6]} 19. Nb1 {[%clk 0:02:06.2]}
19... Bd5 {[%clk 0:01:45.1]} 20. Bxd5 {[%clk 0:01:59.3]} 20... Nxd5 {[%clk
0:01:44]} 21. Bd4 {[%clk 0:01:58.5]} 21... f6 {[%clk 0:01:38.8]} 22. Bxb6 {[%clk
0:01:57]} 22... N7xb6 {[%clk 0:01:34.2]} 23. Nd4 {[%clk 0:01:55.9]} 23... Nc4
{[%clk 0:01:30]} 24. g3 {[%clk 0:01:44.5]} 24... e5 {[%clk 0:01:26.8]} 25. e4
{[%clk 0:01:41.6]} 25... exd4 {[%clk 0:01:21]} 26. exd5 {[%clk 0:01:40.6]} 26...
Kd6 {[%clk 0:01:20.5]} 27. Kd3 {[%clk 0:01:36]} 27... Kxd5 {[%clk 0:01:18.6]}
28. f4 {[%clk 0:01:31.9]} 28... g5 {[%clk 0:01:17.4]} 29. fxg5 {[%clk
0:01:30.2]} 29... Ne5+ {[%clk 0:01:14.6]} 30. Kd2 {[%clk 0:01:25.6]} 30... fxg5
{[%clk 0:01:13.6]} 31. Ke2 {[%clk 0:01:20.3]} 31... Kc4 {[%clk 0:01:11.6]} 32.
Nd2+ {[%clk 0:01:18.6]} 32... Kd5 {[%clk 0:01:03.9]} 33. Nf3 {[%clk 0:01:10.1]}
33... h6 {[%clk 0:01:02.1]} 34. Nxe5 {[%clk 0:01:05.9]} 34... Kxe5 {[%clk
0:01:01.4]} 35. Kd3 {[%clk 0:01:02.8]} 35... g4 {[%clk 0:00:58.2]} 36. Kd2
{[%clk 0:00:55.5]} 36... Ke4 {[%clk 0:00:58]} 37. Ke2 {[%clk 0:00:54]} 37... d3+
{[%clk 0:00:57.9]} 38. Kd2 {[%clk 0:00:53.4]} 38... Kd4 {[%clk 0:00:57.9]} 39.
Kd1 {[%clk 0:00:49]} 39... Ke3 {[%clk 0:00:57.6]} 40. a4 {[%clk 0:00:43.9]}
40... bxa4 {[%clk 0:00:55.8]} 41. b5 {[%clk 0:00:43.8]} 41... axb5 {[%clk
0:00:55.2]} 42. h3 {[%clk 0:00:43.1]} 42... gxh3 {[%clk 0:00:54.2]} 43. g4
{[%clk 0:00:43.6]} 43... h2 {[%clk 0:00:53.8]} 44. g5 {[%clk 0:00:43.9]} 44...
h1=Q# {[%clk 0:00:52.5]} 0-1

[Event "Betsys MČR v online bleskovém šachu 2021"]
[Site "Chess.com"]
[Date "2021.04.17"]
[Round "12"]
[White "HerjoAnpe"]
[Black "misa2009"]
[Result "0-1"]
[WhiteElo "1253"]
[BlackElo "1516"]
[TimeControl "180+1"]
[EndTime "11:00:07 PDT"]
[Termination "Uživatel misa2009 zvítězil matem"]

1. d4 {[%clk 0:03:00.9]} 1... Nf6 {[%clk 0:02:58.2]} 2. Nf3 {[%clk 0:03:01.5]}
2... d5 {[%clk 0:02:56.9]} 3. e3 {[%clk 0:03:01.7]} 3... c5 {[%clk 0:02:55]} 4.
c3 {[%clk 0:03:02]} 4... c4 {[%clk 0:02:53.9]} 5. Nbd2 {[%clk 0:03:00.6]} 5...
e6 {[%clk 0:02:53.5]} 6. b3 {[%clk 0:03:00.4]} 6... b5 {[%clk 0:02:50.4]} 7. Bb2
{[%clk 0:02:55.7]} 7... Be7 {[%clk 0:02:46.4]} 8. a4 {[%clk 0:02:53.5]} 8...
bxa4 {[%clk 0:02:36.4]} 9. Rxa4 {[%clk 0:02:50.7]} 9... Bd7 {[%clk 0:02:35.7]}
10. Ra1 {[%clk 0:02:41.7]} 10... cxb3 {[%clk 0:02:34.5]} 11. Nxb3 {[%clk
0:02:41.2]} 11... Nc6 {[%clk 0:02:33.3]} 12. Ba3 {[%clk 0:02:33.1]} 12... O-O
{[%clk 0:02:23.6]} 13. Nc5 {[%clk 0:02:32.7]} 13... Bxc5 {[%clk 0:02:19.7]} 14.
Bxc5 {[%clk 0:02:31.4]} 14... Ne4 {[%clk 0:02:17]} 15. Ra3 {[%clk 0:02:18.2]}
15... Nxc5 {[%clk 0:02:10.2]} 16. dxc5 {[%clk 0:02:18]} 16... Qf6 {[%clk
0:02:06.4]} 17. Qd4 {[%clk 0:02:15.7]} 17... Nxd4 {[%clk 0:02:05.2]} 18. cxd4
{[%clk 0:02:14.2]} 18... Qf5 {[%clk 0:01:58.9]} 19. Nd2 {[%clk 0:02:09.7]} 19...
h6 {[%clk 0:01:52.7]} 20. Rb3 {[%clk 0:02:09.1]} 20... Rab8 {[%clk 0:01:50.8]}
21. Rc3 {[%clk 0:01:58.7]} 21... Rfc8 {[%clk 0:01:31.9]} 22. Ba6 {[%clk
0:01:51.1]} 22... Rc6 {[%clk 0:01:27.7]} 23. Bb5 {[%clk 0:01:47.6]} 23... Rxb5
{[%clk 0:01:26.3]} 24. O-O {[%clk 0:01:42.5]} 24... e5 {[%clk 0:01:18.4]} 25.
Ra3 {[%clk 0:01:40.2]} 25... exd4 {[%clk 0:01:13.3]} 26. exd4 {[%clk 0:01:38.4]}
26... Qg6 {[%clk 0:01:11.2]} 27. Rfa1 {[%clk 0:01:29.7]} 27... Bh3 {[%clk
0:01:08]} 28. g3 {[%clk 0:01:25.7]} 28... Rb2 {[%clk 0:01:01.4]} 29. Rxa7 {[%clk
0:00:49.6]} 29... Rxd2 {[%clk 0:00:55.2]} 30. Rb1 {[%clk 0:00:43.5]} 30... Qe4
{[%clk 0:00:50.9]} 31. Ra8+ {[%clk 0:00:36.6]} 31... Kh7 {[%clk 0:00:50]} 32. f3
{[%clk 0:00:35.1]} 32... Qxf3 {[%clk 0:00:42.8]} 33. Rb2 {[%clk 0:00:32.2]}
33... Qf1# {[%clk 0:00:40.5]} 0-1

[Event "Betsys MČR v online bleskovém šachu 2021"]
[Site "Chess.com"]
[Date "2021.04.17"]
[Round "12"]
[White "kubajss"]
[Black "Petulak08"]
[Result "0-1"]
[WhiteElo "908"]
[BlackElo "1179"]
[TimeControl "180+1"]
[EndTime "11:00:11 PDT"]
[Termination "Uživatel Petulak08 zvítězil na čas"]

1. e4 {[%clk 0:03:00.9]} 1... e5 {[%clk 0:03:00.1]} 2. Nf3 {[%clk 0:03:01.4]}
2... Nc6 {[%clk 0:02:59.6]} 3. Bc4 {[%clk 0:03:01.4]} 3... Nf6 {[%clk
0:02:57.5]} 4. d3 {[%clk 0:02:59.1]} 4... Bc5 {[%clk 0:02:53.8]} 5. Bg5 {[%clk
0:02:55.8]} 5... h6 {[%clk 0:02:51.7]} 6. Bxf6 {[%clk 0:02:53.1]} 6... Qxf6
{[%clk 0:02:50.7]} 7. Nc3 {[%clk 0:02:53.4]} 7... Nd4 {[%clk 0:02:48]} 8. Nxd4
{[%clk 0:02:38.3]} 8... Bxd4 {[%clk 0:02:47.4]} 9. O-O {[%clk 0:02:37.3]} 9...
d6 {[%clk 0:02:44.7]} 10. Nd5 {[%clk 0:02:33.4]} 10... Qd8 {[%clk 0:02:42.9]}
11. c3 {[%clk 0:02:31]} 11... Bb6 {[%clk 0:02:38.5]} 12. Qf3 {[%clk 0:02:22.8]}
12... Be6 {[%clk 0:02:35.9]} 13. Rad1 {[%clk 0:02:10.5]} 13... Qd7 {[%clk
0:02:25.6]} 14. Nxb6 {[%clk 0:02:01.5]} 14... axb6 {[%clk 0:02:25.2]} 15. Bxe6
{[%clk 0:01:51.1]} 15... Qxe6 {[%clk 0:02:25.4]} 16. a3 {[%clk 0:01:50.2]} 16...
Qb3 {[%clk 0:02:23.8]} 17. Rb1 {[%clk 0:01:47.7]} 17... O-O {[%clk 0:02:19.3]}
18. Rfd1 {[%clk 0:01:31.9]} 18... Ra4 {[%clk 0:02:17.8]} 19. Qe3 {[%clk
0:01:29]} 19... Rfa8 {[%clk 0:02:15.7]} 20. d4 {[%clk 0:01:24.6]} 20... exd4
{[%clk 0:02:14.4]} 21. Rxd4 {[%clk 0:01:23.3]} 21... Rxd4 {[%clk 0:02:13.4]} 22.
Qxd4 {[%clk 0:01:23.2]} 22... Rxa3 {[%clk 0:02:11.6]} 23. Qd2 {[%clk 0:01:13.4]}
23... Ra2 {[%clk 0:02:07.8]} 24. h3 {[%clk 0:01:07.7]} 24... b5 {[%clk
0:02:06.9]} 25. e5 {[%clk 0:00:52.9]} 25... dxe5 {[%clk 0:02:01.8]} 26. Qd8+
{[%clk 0:00:49.6]} 26... Kh7 {[%clk 0:02:02.1]} 27. Qxc7 {[%clk 0:00:37.4]}
27... f6 {[%clk 0:01:37]} 28. Qxb7 {[%clk 0:00:20.8]} 28... Rxb2 {[%clk
0:01:36]} 29. Rf1 {[%clk 0:00:20]} 29... Qxc3 {[%clk 0:01:34.8]} 30. Qe4+ {[%clk
0:00:18.5]} 30... Kg8 {[%clk 0:01:28.6]} 31. Qa8+ {[%clk 0:00:16.1]} 31... Kf7
{[%clk 0:01:27.2]} 32. Rd1 {[%clk 0:00:08.7]} 32... Qc5 {[%clk 0:01:20.3]} 33.
Kh1 {[%clk 0:00:06.5]} 33... Qxf2 {[%clk 0:01:16.8]} 34. Rd7+ {[%clk 0:00:05.1]}
34... Kg6 {[%clk 0:01:15.6]} 35. Qe4+ {[%clk 0:00:03.1]} 35... f5 {[%clk
0:01:06.4]} 0-1

[Event "Betsys MČR v online bleskovém šachu 2021"]
[Site "Chess.com"]
[Date "2021.04.17"]
[Round "12"]
[White "Naty139"]
[Black "jsulc"]
[Result "0-1"]
[WhiteElo "2202"]
[BlackElo "2105"]
[TimeControl "180+1"]
[EndTime "11:00:12 PDT"]
[Termination "Uživatel jsulc zvítězil matem"]

1. e4 {[%clk 0:03:00.9]} 1... e5 {[%clk 0:02:59.8]} 2. Nf3 {[%clk 0:03:01.1]}
2... Nc6 {[%clk 0:02:59.9]} 3. Bc4 {[%clk 0:03:01]} 3... Nf6 {[%clk 0:02:59.8]}
4. d3 {[%clk 0:03:00.6]} 4... Be7 {[%clk 0:03:00]} 5. O-O {[%clk 0:02:59.7]}
5... d6 {[%clk 0:03:00]} 6. Re1 {[%clk 0:02:59.5]} 6... O-O {[%clk 0:02:59.6]}
7. Nbd2 {[%clk 0:02:51.7]} 7... Na5 {[%clk 0:02:59.2]} 8. c3 {[%clk 0:02:49.7]}
8... c5 {[%clk 0:02:56.6]} 9. Bb5 {[%clk 0:02:47.9]} 9... a6 {[%clk 0:02:56.1]}
10. Ba4 {[%clk 0:02:48.3]} 10... b5 {[%clk 0:02:56.2]} 11. Bc2 {[%clk
0:02:48.7]} 11... Nc6 {[%clk 0:02:56.1]} 12. Nf1 {[%clk 0:02:42.7]} 12... Be6
{[%clk 0:02:54.8]} 13. d4 {[%clk 0:02:32]} 13... cxd4 {[%clk 0:02:40.2]} 14.
cxd4 {[%clk 0:02:32.9]} 14... Bg4 {[%clk 0:02:30.6]} 15. d5 {[%clk 0:02:31.7]}
15... Nd4 {[%clk 0:02:27.6]} 16. N1d2 {[%clk 0:02:30.3]} 16... Rc8 {[%clk
0:02:23.8]} 17. Bd3 {[%clk 0:02:27]} 17... Qd7 {[%clk 0:02:14.9]} 18. h3 {[%clk
0:01:50.4]} 18... Bh5 {[%clk 0:02:14.5]} 19. Re3 {[%clk 0:01:48.3]} 19... Bd8
{[%clk 0:02:06.1]} 20. b3 {[%clk 0:01:43.5]} 20... Bb6 {[%clk 0:02:05]} 21. Re1
{[%clk 0:01:33.7]} 21... Rc3 {[%clk 0:01:55.1]} 22. Be2 {[%clk 0:01:30.3]} 22...
Bxf3 {[%clk 0:01:48.7]} 23. Bxf3 {[%clk 0:01:22.3]} 23... Nc2 {[%clk 0:01:46.3]}
24. Bb2 {[%clk 0:01:21.8]} 24... Rcc8 {[%clk 0:01:43.7]} 25. Rf1 {[%clk
0:01:13.7]} 25... Nxa1 {[%clk 0:01:43]} 26. Bxa1 {[%clk 0:01:14.6]} 26... Ba5
{[%clk 0:01:30.3]} 27. Bb2 {[%clk 0:01:05]} 27... Qc7 {[%clk 0:01:27.1]} 28. Ba3
{[%clk 0:00:46.6]} 28... Rfd8 {[%clk 0:01:25.9]} 29. g4 {[%clk 0:00:35.2]} 29...
Qc2 {[%clk 0:01:22.4]} 30. g5 {[%clk 0:00:34.7]} 30... Ne8 {[%clk 0:01:20.1]}
31. Nb1 {[%clk 0:00:21.8]} 31... Qxa2 {[%clk 0:01:12.6]} 32. b4 {[%clk 0:00:18]}
32... Bb6 {[%clk 0:01:10.5]} 33. Be2 {[%clk 0:00:15.4]} 33... Bd4 {[%clk
0:01:04.7]} 34. Bg4 {[%clk 0:00:15.2]} 34... Rc2 {[%clk 0:01:02.9]} 35. h4
{[%clk 0:00:13.1]} 35... Rxf2 {[%clk 0:00:59.8]} 36. Kh1 {[%clk 0:00:12.3]}
36... Rh2# {[%clk 0:00:58.5]} 0-1